Cogmind - Beta 17 @@@ ROGUE MODE // 2026.07.12 @ 20:14:36 Player: JackZewap Result: Self-destructed Performance ------------- Evolutions (3) 1500 Regions Visited (6) 1200 Robots Destroyed (4) 20 Value Destroyed (98) 98 Prototype IDs (15) 300 Alien Tech Used (0) 0 Bonus (25) 25 TOTAL SCORE: 3143 Bonus ------- Follower Combat Kills 25 Cogmind --------- Core Integrity 700/700 Matter 300/300 Energy 29/100 System Corruption 0% Temperature Cool (2) Movement Flying (34) Location -7/Factory Parts ------- > --- POWER (1) -------- (None) > --- PROPULSION (5) --- VTOL Module Improved Flight Unit > --- UTILITY (5) ------ Trap Scanner Advanced Visual Processing Unit Experimental Sensor Array Improved Signal Interpreter Makeshift System Shield > --- WEAPON (2) ------- Improved Medium Laser Remote Datajack > --- INVENTORY (5) ---- Micro Nuclear Core High-capacity Matter Pod (200) Particle Charger Grenade Launcher Plasma Cutter Peak State ------------ > --- POWER ------------ Micro Nuclear Core > --- PROPULSION ------- VTOL Module Improved Flight Unit > --- UTILITY ---------- Trap Scanner Advanced Visual Processing Unit Experimental Sensor Array Improved Signal Interpreter Makeshift System Shield > --- WEAPON ----------- Improved Medium Laser Remote Datajack > --- INVENTORY -------- High-capacity Matter Pod Particle Charger Grenade Launcher Plasma Cutter [Rating: 38] Favorites ----------- Power Light Ion Engine Engine Light Ion Engine Power Core Micro Nuclear Core Propulsion Light Treads Treads Light Treads Flight Unit VTOL Module Utility Small Storage Unit Device Seismic Detector Storage Small Storage Unit Processor Transport Network Coupler Hackware Makeshift System Shield Weapon Light Assault Rifle Energy Gun Shock Rifle Energy Cannon Light EM Pulse Cannon Ballistic Gun Light Assault Rifle Special Weapon Remote Datajack Build | -11 -10 -10 -10 -9 -8 -7 ------- Run | Yrd Mat Min Exi Min Mat Fac Slots Evolved 6 | . . . . . 4 2 Power . | . . . . . . . Propulsion 3 | . . . . . 2 1 Utility 3 | . . . . . 2 1 Weapon . | . . . . . . . Parts Attached 27 | 6 2 1 1 3 12 2 Power 4 | 2 . . . . 1 1 Engine 3 | 2 . . . . 1 . Core 1 | . . . . . . 1 Reactor . | . . . . . . . Propulsion 4 | 2 . . . . 2 . Treads 2 | 2 . . . . . . Leg . | . . . . . . . Wheel . | . . . . . . . Hover . | . . . . . . . Flight 2 | . . . . . 2 . Utility 11 | 1 1 1 . 2 5 1 Device 4 | . . 1 . 2 . 1 Storage 1 | 1 . . . . . . Processor 4 | . 1 . . . 3 . Hackware 2 | . . . . . 2 . Protection . | . . . . . . . Artifact . | . . . . . . . Weapon 8 | 1 1 . 1 1 4 . Energy Gun 2 | . . . 1 . 1 . Energy Cannon 1 | . . . . 1 . . Ballistic Gun 3 | 1 . . . . 2 . Ballistic Cannon . | . . . . . . . Launcher . | . . . . . . . Special Weapon 2 | . 1 . . . 1 . Impact Weapon . | . . . . . . . Slashing Weapon . | . . . . . . . Piercing Weapon . | . . . . . . . Special Melee Weapon . | . . . . . . . Unidentified Prototypes 4 | . . . . 1 3 . Parts Lost 4 | . 1 . . 3 . . Power 1 | . . . . 1 . . Propulsion . | . . . . . . . Utility . | . . . . . . . Weapon 3 | . 1 . . 2 . . Highest Loss Streak 3 | . 1 . . 3 . . To Critical Strikes . | . . . . . . . Average Backups 6 | 1 5 8 8 7 4 4 Power . | . 1 1 . . . . Propulsion 2 | . 2 3 2 1 . . Utility 2 | . 1 3 3 3 2 2 Weapon . | . . 1 1 1 1 1 Tool/Special . | . . . . . . . Unused Backups 11 | . . . 2 4 1 4 Power . | . . . . . . . Propulsion 3 | . . . 1 2 . . Utility 6 | . . . 1 2 1 2 Weapon 1 | . . . . . . 1 Tool/Special 1 | . . . . . . 1 Average Slot Usage (%) 79 | . 79 85 86 79 56 68 Engine 11 | . 14 14 14 10 . . Treads 22 | . 28 28 28 22 . . Flight 2 | . . . . . 14 15 Device 10 | . . 5 14 12 9 14 Storage 11 | . 14 14 14 10 . . Processor 3 | . 4 8 . . 7 15 Hackware 1 | . . . . . 11 7 Energy Gun 2 | . . . 1 10 1 7 Ballistic Gun 12 | . 14 14 14 10 10 . Peak Build Rating 38 | 5 7 6 11 19 33 38 Average Rating 11 | 4 5 6 7 13 25 34 On Entrance 10 | . 5 6 6 11 13 32 Avg Prop Armor Cover (%) 9 | . . . . . 9 . Naked Turns 50 | . . . . 50 . . Heaviest Build 13 | 11 12 12 13 13 7 9 Greatest Support 40 | 40 40 40 40 40 9 9 Greatest Overweight (x) 2 | 1 . . . 1 2 . Average Overweight (x) . | . . . . . . . Largest Inventory Capacity 8 | 8 8 8 8 8 5 5 Average Capacity 7 | 7 8 8 8 7 5 5 Most Carried 8 | 3 8 8 8 8 5 5 Average Carried 6 | 1 5 8 7 7 4 4 Final Capacity 8 | 8 8 8 8 5 5 5 Final Carried 8 | 3 8 8 8 5 5 5 Class Distribution -------------------- 73% | Mutant 13% | Commander-Mutant 8% | Scout 4% | Hacker-Mutant Dominant Class ---------------- Mutant | -10/Materials Mutant | -10/Mines Mutant | -10/Exiles Commander-Mutant | -9/Mines Hacker-Mutant | -8/Materials Scout | -7/Factory Resources | -11 -10 -10 -10 -9 -8 -7 ----------- Run | Yrd Mat Min Exi Min Mat Fac Matter Collected 795 | 180 52 178 69 40 241 35 Remotely . | . . . . . . . Salvage Created 264 | . 52 . 95 . 117 . Parts 17 | . 4 . 8 . 5 . Haulers Intercepted 2 | . 1 . . . 1 . Recyclers Shooed . | . . . . . . . Parts Field Recycled . | . . . . . . . Retrieved Matter . | . . . . . . . Parts Self-Destructed . | . . . . . . . Prevented . | . . . . . . . Parts Restored . | . . . . . . . Kills | -11 -10 -10 -10 -9 -8 -7 ------- Run | Yrd Mat Min Exi Min Mat Fac Combat Hostiles Destroyed 2 | . . . . . 2 . Guns 2 | . . . . . 2 . Classes Destroyed 2 | . 1 . . . 1 . Hauler 2 | . 1 . . . 1 . Grunt 2 | . . . . . 2 . Best Kill Streak 2 | . 1 . . . 2 . Combat Bots Only 2 | . . . . . 2 . Max Kills in Single Turn 1 | . 1 . . . 1 . Gunslinging . | . . . . . . . Exploded . | . . . . . . . Melee . | . . . . . . . Uniques/NPCs Destroyed . | . . . . . . . Combat | -11 -10 -10 -10 -9 -8 -7 -------- Run | Yrd Mat Min Exi Min Mat Fac Hostile Shots Fired 36 | . 15 . . 13 8 . Missed 7 | . 2 . . . 5 . Hits 29 | . 13 . . 13 3 . Projectile 29 | . 13 . . 13 3 . AOE 13 | . . . . 13 . . Damage Taken 698 | . 111 . . 541 46 . Core 206 | . 10 . . 196 . . Absorbed by Shields . | . . . . . . . Core Remaining (%) 72 | 100 . . . 17 100 . Volleys Fired 59 | . 18 . 23 1 12 5 Largest 2 | . 2 . 1 2 1 1 Hottest 120 | . 120 . 20 70 56 56 Shots Fired 62 | . 20 . 23 2 12 5 Gun 54 | . 18 . 23 2 9 2 Cannon . | . . . . . . . Launcher . | . . . . . . . Special 8 | . 2 . . . 3 3 Kinetic 49 | . 18 . 23 1 7 . Thermal 6 | . 2 . . . 2 2 Explosive . | . . . . . . . Electromagnetic 1 | . . . . 1 . . Robot Hit Streak 17 | . 2 . 15 17 8 9 Robot Miss Streak 2 | . 2 . 1 . 2 2 Penetration Max . | . . . . . . . Secondary Targets . | . . . . . . . Shots Hit Robots 45 | . 9 . 22 2 10 2 Core Hits 15 | . 3 . 8 . 4 . Critical Kills . | . . . . . . . Critical Parts Destroyed . | . . . . . . . Critical Strikes 1 | . . . . . 1 . Burn 1 | . . . . . 1 . Melee Attacks . | . . . . . . . Impact . | . . . . . . . Slashing . | . . . . . . . Piercing . | . . . . . . . Sneak Attacks . | . . . . . . . Combat Hostiles . | . . . . . . . Follow-up Attacks . | . . . . . . . Damage Inflicted 480 | . 84 . 240 22 134 . Guns 421 | . 60 . 205 22 134 . Cannons . | . . . . . . . Explosions . | . . . . . . . Melee . | . . . . . . . Ramming 35 | . . . 35 . . . Kinetic 371 | . 60 . 205 6 100 . Thermal 58 | . 24 . . . 34 . Explosive . | . . . . . . . Electromagnetic 16 | . . . . 16 . . Impact . | . . . . . . . Slashing . | . . . . . . . Piercing . | . . . . . . . Highest Corruption . | . . . . . . . Average Corruption . | . . . . . . . Corruption Purged . | . . . . . . . Corruption Blocked . | . . . . . . . Overload Shots . | . . . . . . . Overflow Damage . | . . . . . . . Projectiles . | . . . . . . . Explosions . | . . . . . . . Melee . | . . . . . . . Knockbacks . | . . . . . . . Impact . | . . . . . . . Kinetic . | . . . . . . . Secondary . | . . . . . . . Self-Inflicted Damage . | . . . . . . . Shots . | . . . . . . . Rammed 18 | . . . 18 . . . Targets Rammed 21 | . . . 21 . . . Kicked . | . . . . . . . Crushed 3 | . . . 3 . . . Highest Temperature 40 | . 40 . . 30 . . Average Temperature 21 | . 21 . . 18 . . Received Heat Transfer 27 | . . . . . 27 . Siege Activations . | . . . . . . . Martial Activations . | . . . . . . . Shielding Activations . | . . . . . . . Robots Disrupted . | . . . . . . . Combat Hostiles . | . . . . . . . Robots Corrupted . | . . . . . . . Combat Hostiles . | . . . . . . . Parts Fried . | . . . . . . . Impact Corruptions . | . . . . . . . Robots Melted . | . . . . . . . Combat Hostiles . | . . . . . . . Parts Melted . | . . . . . . . Heat Transferred 198 | . 50 . . . 148 . Parts Sabotaged . | . . . . . . . Parts Stolen . | . . . . . . . Parts Stripped . | . . . . . . . Power Chain Reactions . | . . . . . . . Alert | -11 -10 -10 -10 -9 -8 -7 ------- Run | Yrd Mat Min Exi Min Mat Fac Maximum Alert Level . | . . . . . . . Low Security (%) 100 | 100 100 100 . 100 100 100 Level 1 . | . . . . . . . Level 2 . | . . . . . . . Level 3 . | . . . . . . . Level 4 . | . . . . . . . Level 5 . | . . . . . . . High Security . | . . . . . . . Max Security . | . . . . . . . Peak Influence 75 | . 15 . . 30 75 1 Initial 1 | . . . . . . 1 Average 6 | . 1 . . 3 25 . Influence Increases 230 | . 22 . 10 57 141 . Destroy 0b10 Robot/C 60 | . . . . 20 40 . Destroy 0b10 Robot/NC 20 | . 5 . 10 . 5 . Destroy Leader 4 | . 2 . . . 2 . Allied During Kill 7 | . . . . 7 . . Trap Triggered on 0b10 10 | . . . . . 10 . Successful Hack 9 | . . . . . 9 . Partial Spotted 15 | . 15 . . . . . Lose Combat Pursuer 105 | . . . . 30 75 . Influence Decreases 230 | . 22 . 10 57 137 4 Entered New Map 3 | . . . . . . 3 Time Decay 227 | . 22 . 10 57 137 1 Squads Dispatched 3 | . . . . . 1 2 Investigation 1 | . . . . . 1 . Extermination . | . . . . . . . Reinforcement 1 | . . . . . . 1 Assault . | . . . . . . . Garrison 1 | . . . . . . 1 Intercept . | . . . . . . . Searches Triggered . | . . . . . . . Construction Impeded . | . . . . . . . Haulers Reinforced . | . . . . . . . Active Scanning Responses . | . . . . . . . Cargo Convoy Interrupts . | . . . . . . . Stealth | -11 -10 -10 -10 -9 -8 -7 --------- Run | Yrd Mat Min Exi Min Mat Fac Distress Signals . | . . . . . . . Communications Jammed . | . . . . . . . Distress Signals . | . . . . . . . Times Spotted 18 | . 9 . . 2 5 2 Peak Tracking Total 5 | . 5 . . 2 3 1 Tactical Retreats 4 | . . . . 1 3 . Traps | -11 -10 -10 -10 -9 -8 -7 ------- Run | Yrd Mat Min Exi Min Mat Fac Traps Triggered . | . . . . . . . Indirectly . | . . . . . . . Trap Hack Attempts . | . . . . . . . Triggered . | . . . . . . . Disarmed . | . . . . . . . Reprogrammed . | . . . . . . . Reused 1 | . . . . . 1 . Traps Extracted . | . . . . . . . Installed 5 | . . . . 4 1 . Triggered 1 | . . . . . 1 . Most Traps Carried 1 | . . . . 1 1 . Machines | -11 -10 -10 -10 -9 -8 -7 ---------- Run | Yrd Mat Min Exi Min Mat Fac Machines Disabled . | . . . . . . . Max in Single Turn . | . . . . . . . Machines Repaired . | . . . . . . . Machines Dismantled . | . . . . . . . Machines Sabotaged . | . . . . . . . Overloaded Fab Kills . | . . . . . . . Hacking | -11 -10 -10 -10 -9 -8 -7 --------- Run | Yrd Mat Min Exi Min Mat Fac Machines Accessed 5 | . . . 2 . 3 . Terminals 2 | . . . . . 2 . Fabricators . | . . . . . . . Repair Stations . | . . . . . . . Recycling Units 1 | . . . . . 1 . Scanalyzers . | . . . . . . . Garrison Access . | . . . . . . . Total Hacks 8 | . . . 3 . 5 . Successful 8 | . . . 3 . 5 . Failed . | . . . . . . . Catastrophic . | . . . . . . . Database Lockouts . | . . . . . . . Manual 3 | . . . 1 . 2 . Terminals 4 | . . . . . 4 . Fabricators . | . . . . . . . Repair Stations . | . . . . . . . Recycling Units 1 | . . . . . 1 . Scanalyzers . | . . . . . . . Garrison Access . | . . . . . . . Terminal Hacks 5 | . . . 3 . 2 . Record 3 | . . . 3 . . . Alert Level 1 | . . . . . 1 . Hauler Manifests 1 | . . . . . 1 . Fabricator Hacks . | . . . . . . . Repair Station Hacks . | . . . . . . . Recycling Unit Hacks 1 | . . . . . 1 . Report Inventory 1 | . . . . . 1 . Scanalyzer . | . . . . . . . Garrison Access Hacks . | . . . . . . . Unauthorized Hacks 2 | . . . . . 2 . Terminals 2 | . . . . . 2 . Botnet 1 | . . . . . 1 . Operators 1 | . . . . . 1 . Fabricators . | . . . . . . . Repair Stations . | . . . . . . . Recycling Units . | . . . . . . . Scanalyzers . | . . . . . . . Garrison Access . | . . . . . . . Data Cores Recovered . | . . . . . . . Used . | . . . . . . . Hacking Detections 1 | . . . . . 1 . Full Trace Events . | . . . . . . . Feedback Events . | . . . . . . . Feedback Blocked . | . . . . . . . Robot Schematics Acquired . | . . . . . . . Robots Built . | . . . . . . . Authchips . | . . . . . . . Time . | . . . . . . . Total Robot Build Rating . | . . . . . . . Part Schematics Acquired . | . . . . . . . Parts Built . | . . . . . . . Authchips . | . . . . . . . Time . | . . . . . . . Total Part Build Rating . | . . . . . . . Part Studies Acquired . | . . . . . . . Parts Repaired . | . . . . . . . Time . | . . . . . . . Parts Recycled . | . . . . . . . Recycled Matter . | . . . . . . . Retrieved Matter . | . . . . . . . Retrieved Components . | . . . . . . . Parts Scanalyzed . | . . . . . . . Part Schematics Acquired . | . . . . . . . Parts Damaged . | . . . . . . . Bothacking | -11 -10 -10 -10 -9 -8 -7 ------------ Run | Yrd Mat Min Exi Min Mat Fac Used RIF Installer . | . . . . . . . Robots Hacked 4 | . . . . . 2 2 Non-combat 3 | . . . . . 2 1 Combat 1 | . . . . . . 1 Robot Hacks Applied 5 | . . . . . 3 2 parse_system 2 | . . . . . 1 1 no_distress 2 | . . . . . 2 . check_alert 1 | . . . . . . 1 Relay Couplers Released . | . . . . . . . Fabnet Peak Effective % . | . . . . . . . Robots Rewired 3 | . . . 3 . . . Allies Hacked . | . . . . . . . Hacks Repelled . | . . . . . . . Allies | -11 -10 -10 -10 -9 -8 -7 -------- Run | Yrd Mat Min Exi Min Mat Fac Total Allies 6 | . . . 3 3 . . Largest Group 6 | . . . 3 6 . . Highest-Rated Group 77 | . . . 37 77 . . Highest-Rated Ally 21 | . . . 21 21 . . Total Orders 4 | . . . 2 2 . . STAY 1 | . . . 1 . . . FOLLOW 2 | . . . 1 1 . . AID 1 | . . . . 1 . . Ally Attacks 3 | . . . . 3 . . Total Damage 36 | . . . . 36 . . Kills 1 | . . . . 1 . . Allies Corrupted . | . . . . . . . Allies Melted . | . . . . . . . Intel | -11 -10 -10 -10 -9 -8 -7 ------- Run | Yrd Mat Min Exi Min Mat Fac Active Infowar (turns) 2470 | . 118 254 1227 423 329 119 Optics 304 | . . . . . 185 119 Sensors 716 | . . . . 295 327 94 Traps 64 | . . . . . . 64 Seismic 1503 | . . 103 1227 151 22 . T.N.C. 269 | . 118 151 . . . . Robot Analysis Total . | . . . . . . . Derelict Logs Recovered 2 | . . 1 . 1 . . Drone Launches . | . . . . . . . Drone Recoveries . | . . . . . . . Exploration | -11 -10 -10 -10 -9 -8 -7 ------------- Run | Yrd Mat Min Exi Min Mat Fac Turns Passed 2851 | 110 329 254 1227 483 329 119 Spaces Moved 2124 | 65 177 158 684 364 432 244 Core 211 | 13 . . . 164 34 . Treads 1271 | 52 177 158 684 200 . . Legs . | . . . . . . . Wheels . | . . . . . . . Hover . | . . . . . . . Flight 642 | . . . . . 398 244 Fastest Speed 34 | 50 160 160 160 50 34 34 Average Speed 112 | 139 160 160 160 111 41 34 Slowest Speed 160 | 160 160 160 160 160 150 34 Overloaded Moves . | . . . . . . . Propulsion Burnouts . | . . . . . . . Robots Hopped 6 | . . . . . 2 4 Potential Cave-ins . | . . . . . . . Cave-ins Triggered . | . . . . . . . Exploration Rate (%) 38 | 3 24 48 92 62 30 7 Regions Visited 6 Branch Regions 3 Pre-discovered Areas . | . . . . . . . Known Exits Taken 1 | . . . . . 1 . Unknown Exits Taken 5 | 1 1 1 1 1 . . Scrap Searched 4 | . . 2 . 2 . . Spaces Dug . | . . . . . . . Terrain Destroyed . | . . . . . . . Melee . | . . . . . . . Projectile . | . . . . . . . AOE . | . . . . . . . Terrain Rammed . | . . . . . . . Walls Destroyed . | . . . . . . . Machines Disabled . | . . . . . . . Actions | -11 -10 -10 -10 -9 -8 -7 --------- Run | Yrd Mat Min Exi Min Mat Fac Total 2509 | 81 202 159 787 439 569 272 Wait 192 | 9 1 . . 60 98 24 Move 2106 | 64 176 157 683 363 427 236 Hop 6 | . . . . . 2 4 Pick Up 16 | 2 5 . 3 1 5 . Fast Attach 22 | 5 2 1 1 3 9 1 Attach 6 | . . . 1 1 3 1 Detach 6 | . . 1 . 1 3 1 Swap 2 | 1 . . . . 1 . Drop 16 | . . . 3 5 8 . Fire 59 | . 18 . 23 1 12 5 Melee . | . . . . . . . Ram . | . . . . . . . Kick . | . . . . . . . Crush 21 | . . . 21 . . . Escape Stasis . | . . . . . . . Rewire 52 | . . . 52 . . . Trap 5 | . . . . 4 1 . Miscellaneous . | . . . . . . . Route ------- -11/Scrapyard -10/Materials -10/Mines -10/Exiles -9/Mines -8/Materials -7/Factory History --------- Turn | Location | Event 7 | -11/Scrapyard | Discovered new exit (range 16) 111 | -11/Scrapyard | Entered Materials 302 | -10/Materials | Build established: Mutant 345 | -10/Materials | Discovered new exit (range 7) 440 | -10/Materials | Entered Mines 504 | -10/Mines | Learned Materials terminal intel 687 | -10/Mines | Deemed a non-threat by the Exiles lab entrance 687 | -10/Mines | Discovered new exit (range 5) 694 | -10/Mines | Entered Exiles 694 | -10/Exiles | Found Exiles lab destroyed 1509 | -10/Exiles | Discovered new exit (range 10) 1921 | -10/Exiles | Entered Mines 1921 | -9/Mines | Accompanied by 3 allies 1925 | -9/Mines | Assisted by bots powering up and referring to "LRC-V3" 2016 | -9/Mines | Found a damaged Exp. Sensor Array with a note attached 2020 | -9/Mines | Found Prototype Device 2020 | -9/Mines | Identified Exp. Sensor Array 2062 | -9/Mines | Assembled infested the area 2212 | -9/Mines | Build established: Commander-Mutant 2300 | -9/Mines | Core integrity fell below 50% 2302 | -9/Mines | Core integrity fell below 20% 2328 | -9/Mines | Lost 3 parts (1p2w) 2328 | -9/Mines | Lost 6 allies 2370 | -9/Mines | Found a hidden stash of uninstalled traps 2391 | -9/Mines | Discovered new exit (range 6) 2401 | -9/Mines | Learned location of 1 exit from Lower Caves 2404 | -9/Mines | Entered Materials 2404 | -8/Materials | Evolved 4 slots: Propulsion x2, Utility x2 2405 | -8/Materials | Loaded intel: 12 terminal locations 2618 | -8/Materials | Met 7R-MNS 2718 | -8/Materials | Discovered new exit (range 19) 2728 | -8/Materials | Identified exit to Factory 2733 | -8/Materials | Entered Factory 2733 | -7/Factory | Evolved 2 slots: Propulsion x1, Utility x1 2734 | -7/Factory | Caught up to 7R-MNS 2822 | -7/Factory | Garrison activated, responded to threat 2852 | -7/Factory | Self-destructed Last Messages --------------- 02770_ 7R-MNS: "This thing is awesome, an instant classic. 4L-MR0 really outdid themself with this Tripod." 02779_ U-05 Engineer lays Concrete. 02781_ O-16 Technician: "IFF HANDSHAKE FAILED. SECURING TERMINAL." 02781_ ALERT: All DSF locations entering lockdown mode. 02783_ ALERT: Hostiles spotted, dispatching reinforcements to Terminal F013. 02784_ Jacked O-16 Technician... >>check_alert Querying alert level: Low Security 02802_ Acquired 35 matter. 02815_ K-01 Serf pushes C-17 Slicer. 02821_ K-01 Serf latches onto C-17 Slicer. 02821_ K-01 Serf pushes C-17 Slicer. 02821_ K-01 Serf cleans the Subcomponent Replicator. 02822_ K-01 Serf pushes C-17 Slicer. 02822_ ALERT: Activating Garrison Access F003. 02822_ K-01 Serf pushes C-17 Slicer. 02824_ K-01 Serf cleans the Subcomponent Replicator. 02824_ K-01 Serf pushes C-17 Slicer. Map ----- +----------------------------------------------------+ | ?????????????????????????????????????????????????? | | ?????????????????????????????????????????????????? | | ?????????????????????????????????????????????????? | | ?????????????????????????????????????????????????? | | ?????????????????????????????????????????????????? | | ?????????????????????????????????????????????????? | | ?????????????????????????????????????????????????? | | ?????????????????????????????????????????????????? | | ?????????????????????????????????????????????????? | | ?????????????????????????????????????????????????? | | ?????????????????????????????????????????????????? | | ?????????????????????????????????????????????????? | | ?????????????????????????????????????????????????? | | ?????????????????????????????????????????????????? | | ?????????????????????????????????????????????????? | | ?????????????????????????????????????????????????? | | ?????????????????????????????????????????????????? | | ?????????????????????????????????????????????????? | | ?????????????????????????????????????????????????? | | ?????????????????????????????????????????????????? | | ?????????????????????????????????????????????????? | | ?????????????????????????????????????????????????? | | ?????????????????????????????????????????????????? | | ?????????????????????????????????????????????????? | | ?????????????##############??????????????????????? | | ?????????????# @#??????????????????????? | | ?????????????# """"""""" #??????????????????????? | | ?????????????# #??????????????????????? | | ?????????????# """"""""" #??????????????????????? | | ?????????????# #??????????????????????? | | ?????????????# """"""""" #########+######+##### ? | | ?????????????# # | | ??????? ????# """"""""" # | | ?????# ???# + | | ?????+ ???# """"""""" # | | ?????# ??# [# | | ?????# ??# ! # ###############??? | | ?????# ##########+##### #????????????????? | | ?????# #????????????????? | | ??????? #????????????????? | | ???????? "" "" !!! ##############???? | | ????????? "" "" !!! # #???? | | ?????????? """ """ !!! # """""" #???? | | ????????????# """ """ # """""" #???? | | ????????????# """ """ # """""" #???? | | ????????????# # """""" #???? | | ????????????# # #???? | | ??????? """ # + """""" #???? | | ??????? """ + """ """ # """""" #???? | | ? # """T""" # """""" #???? | +----------------------------------------------------+ Best States ------------- Heat Dissipation 34 Energy Generation 10 Energy Capacity 250 Matter Stores 300 Matter Capacity 300 Sight Range 20 Robot Scan Range 20 Terrain Scan Density 10 Evasion (%) 63 Recoil Reduction 2 Offensive Hacking 10 Defensive Hacking 11 Item Schematics ----------------- None Robot Schematics ------------------ None Fabricated ------------ Nothing Repaired ---------- Nothing Studied --------- None Alien Tech Used ----------------- None Achievements -------------- Analysis Probe Junior Dev Challenges ------------ None Game ------ Seed UltimateDecoderChainsword Manual? 0 Play Time 00:26:26 Cumulative 133.3 hours Start 2026.07.12 @ 19:48:00 End 2026.07.12 @ 20:14:36 Sessions 1 Manual Loads 0 Difficulty Rogue Special Mode None Game No. 171 Rogue 165 Adventurer 6 Explorer 0 Win Type - Total 1 Types 1/0/0/0/0/0/0/0/0/0 Lore% 27 Gallery% 54 Achievement% 27 Wizard Run 0 Options --------- Layout 0 ASCII 0 Keyboard 1 Movement Numpad Keybinds 0 Fullscreen 2 Font 18/SmallcapsGlow Map View 76x50 Zoom Use 0% Tactical HUD 1 Map Filters NONE Filters NONE Steam 1 RUN: 29b4fd3c-c537-4b82-8312-40e48fa8d40c